[Event "ONJK 2024 ABC"]
[Site "Velp, Netherlands"]
[Date "2024.08.03"]
[Round "3.11"]
[White "Hagen, Carlijn"]
[Black "Vagenende, Lars"]
[Result "1-0"]
[TimeControl "90 minutes + 30 seconds"]
[WhiteElo "1645"]
[BlackElo "1686"]

1. e4 {[%clk 01:30:58]} {[%emt 00:00:02]} e5 {[%clk 01:30:54]} {[%emt
00:00:06]} 2. f4 {[%clk 01:31:24]} {[%emt 00:00:04]} exf4 {[%clk 01:31:03]}
{[%emt 00:00:20]} 3. Nf3 {[%clk 01:31:50]} {[%emt 00:00:05]} g5 {[%clk
01:31:07]} {[%emt 00:00:25]} 4. Bc4 {[%clk 01:32:14]} {[%emt 00:00:06]} Bg7
{[%clk 01:31:04]} {[%emt 00:00:33]} 5. O-O {[%clk 01:32:22]} {[%emt 00:00:23]}
d6 {[%clk 01:30:20]} {[%emt 00:01:14]} 6. d4 {[%clk 01:31:47]} {[%emt
00:01:05]} Nc6 {[%clk 01:29:48]} {[%emt 00:01:02]} 7. c3 {[%clk 01:31:58]}
{[%emt 00:00:19]} h6 {[%clk 01:29:26]} {[%emt 00:00:51]} 8. Qc2 {[%clk
01:29:35]} {[%emt 00:02:54]} Nge7 {[%clk 01:26:42]} {[%emt 00:03:13]} 9. Bd2
{[%clk 01:26:56]} {[%emt 00:03:10]} O-O {[%clk 01:24:17]} {[%emt 00:02:55]} 10.
Be1 {[%clk 01:26:45]} {[%emt 00:00:42]} d5 {[%clk 01:23:15]} {[%emt 00:01:31]}
11. Bd3 {[%clk 01:22:26]} {[%emt 00:04:49]} dxe4 {[%clk 01:21:37]} {[%emt
00:02:07]} 12. Bxe4 {[%clk 01:22:50]} {[%emt 00:00:06]} Nd5 {[%clk 01:20:45]}
{[%emt 00:01:22]} 13. Bxd5 {[%clk 01:22:46]} {[%emt 00:00:36]} Qxd5 {[%clk
01:21:02]} {[%emt 00:00:12]} 14. h3 {[%clk 01:19:21]} {[%emt 00:03:55]} Bf5
{[%clk 01:20:03]} {[%emt 00:01:29]} 15. Qd1 {[%clk 01:17:47]} {[%emt 00:02:04]}
Rfe8 {[%clk 01:16:53]} {[%emt 00:03:40]} 16. Nbd2 {[%clk 01:16:58]} {[%emt
00:01:19]} Bd3 {[%clk 01:14:55]} {[%emt 00:02:27]} 17. Rf2 {[%clk 01:16:40]}
{[%emt 00:00:49]} Ne7 {[%clk 01:14:32]} {[%emt 00:00:53]} 18. Nb3 {[%clk
01:08:45]} {[%emt 00:08:25]} Bc4 {[%clk 01:12:28]} {[%emt 00:02:33]} 19. Nfd2
{[%clk 01:08:54]} {[%emt 00:00:21]} Bxb3 {[%clk 01:10:25]} {[%emt 00:02:33]} 20.
Qxb3 {[%clk 01:09:00]} {[%emt 00:00:25]} Qxb3 {[%clk 01:10:34]} {[%emt
00:00:20]} 21. Nxb3 {[%clk 01:09:25]} {[%emt 00:00:06]} Nf5 {[%clk 01:10:35]}
{[%emt 00:00:28]} 22. Bd2 {[%clk 01:08:43]} {[%emt 00:01:13]} b6 {[%clk
01:09:23]} {[%emt 00:01:42]} 23. Rd1 {[%clk 01:04:09]} {[%emt 00:05:04]} Re7
{[%clk 01:07:09]} {[%emt 00:02:44]} 24. g4 {[%clk 01:01:32]} {[%emt 00:03:07]}
Ng3 {[%clk 01:06:19]} {[%emt 00:01:19]} 25. Nc1 {[%clk 01:01:04]} {[%emt
00:00:59]} Rae8 {[%clk 01:05:44]} {[%emt 00:01:05]} 26. Nd3 {[%clk 00:59:36]}
{[%emt 00:01:57]} Re2 {[%clk 01:04:18]} {[%emt 00:01:56]} 27. Be1 {[%clk
00:58:58]} {[%emt 00:01:08]} Rxf2 {[%clk 01:01:14]} {[%emt 00:03:34]} 28. Bxf2
{[%clk 00:59:05]} {[%emt 00:00:23]} Re2 {[%clk 01:00:17]} {[%emt 00:01:26]} 29.
Bxg3 {[%clk 00:58:34]} {[%emt 00:01:02]} fxg3 {[%clk 01:00:39]} {[%emt
00:00:07]} 30. Re1 {[%clk 00:58:47]} {[%emt 00:00:17]} Rd2 {[%clk 01:00:14]}
{[%emt 00:00:56]} 31. Re3 {[%clk 00:58:40]} {[%emt 00:00:34]} Bf8 {[%clk
00:59:43]} {[%emt 00:01:04]} 32. Rxg3 {[%clk 00:57:47]} {[%emt 00:01:23]} Bd6
{[%clk 00:59:23]} {[%emt 00:00:49]} 33. Rf3 {[%clk 00:57:48]} {[%emt 00:00:30]}
Kg7 {[%clk 00:58:42]} {[%emt 00:01:12]} 34. Kf1 {[%clk 00:56:22]} {[%emt
00:01:55]} c5 {[%clk 00:57:49]} {[%emt 00:01:23]} 35. Ke1 {[%clk 00:55:54]}
{[%emt 00:00:58]} Rh2 {[%clk 00:57:48]} {[%emt 00:00:30]} 36. dxc5 {[%clk
00:55:22]} {[%emt 00:01:03]} bxc5 {[%clk 00:57:56]} {[%emt 00:00:22]} 37. a3
{[%clk 00:55:29]} {[%emt 00:00:24]} c4 {[%clk 00:57:37]} {[%emt 00:00:49]} 38.
Nf2 {[%clk 00:55:24]} {[%emt 00:00:25]} Rg2 {[%clk 00:55:30]} {[%emt 00:02:45]}
39. Kd1 {[%clk 00:51:59]} {[%emt 00:03:55]} Bf4 {[%clk 00:50:32]} {[%emt
00:05:29]} 40. h4 {[%clk 00:38:48]} {[%emt 00:13:41]} Rg1+ {[%clk 00:48:43]}
{[%emt 00:02:20]} 41. Ke2 {[%clk 00:38:27]} {[%emt 00:00:51]} Bc1 {[%clk
00:48:21]} {[%emt 00:00:51]} 42. hxg5 {[%clk 00:37:56]} {[%emt 00:01:01]} hxg5
{[%clk 00:48:25]} {[%emt 00:00:26]} 43. Rf5 {[%clk 00:37:42]} {[%emt 00:00:44]}
Kg6 {[%clk 00:47:16]} {[%emt 00:01:39]} 44. Rb5 {[%clk 00:37:36]} {[%emt
00:00:35]} Rg3 {[%clk 00:46:17]} {[%emt 00:01:29]} 45. Rb4 {[%clk 00:34:37]}
{[%emt 00:03:30]} a5 {[%clk 00:43:55]} {[%emt 00:02:52]} 46. Rb6+ {[%clk
00:33:37]} {[%emt 00:01:31]} f6 {[%clk 00:43:59]} {[%emt 00:00:26]} 47. Rb5
{[%clk 00:32:01]} {[%emt 00:02:06]} Kf7 {[%clk 00:42:39]} {[%emt 00:01:50]} 48.
Rb7+ {[%clk 00:29:13]} {[%emt 00:03:17]} Ke6 {[%clk 00:41:52]} {[%emt
00:01:17]} 49. Rb6+ {[%clk 00:29:13]} {[%emt 00:00:31]} Kf7 {[%clk 00:37:50]}
{[%emt 00:04:30]} 50. Rb7+ {[%clk 00:29:31]} {[%emt 00:00:14]} Kg6 {[%clk
00:37:31]} {[%emt 00:00:49]} 51. Rb5 {[%clk 00:29:42]} {[%emt 00:00:18]} Kf7
{[%clk 00:32:38]} {[%emt 00:05:22]} 52. Rb7+ {[%clk 00:29:33]} {[%emt
00:00:40]} Ke8 {[%clk 00:32:29]} {[%emt 00:00:39]} 53. Rb8+ {[%clk 00:28:47]}
{[%emt 00:01:16]} Ke7 {[%clk 00:32:19]} {[%emt 00:00:39]} 54. Rb6 {[%clk
00:28:50]} {[%emt 00:00:27]} Be3 {[%clk 00:31:03]} {[%emt 00:01:46]} 55. Rb7+
{[%clk 00:28:23]} {[%emt 00:00:57]} Ke6 {[%clk 00:30:49]} {[%emt 00:00:44]} 56.
Ne4 {[%clk 00:27:17]} {[%emt 00:01:36]} Rh3 {[%clk 00:29:28]} {[%emt 00:01:50]}
57. Rb5 {[%clk 00:26:53]} {[%emt 00:00:54]} Bg1 {[%clk 00:27:53]} {[%emt
00:02:05]} 58. Nd2 {[%clk 00:26:01]} {[%emt 00:01:12]} Rh2+ {[%clk 00:27:02]}
{[%emt 00:01:31]} 59. Kd1 {[%clk 00:25:59]} {[%emt 00:00:30]} Rg2 {[%clk
00:21:54]} {[%emt 00:05:40]} 60. Rxa5 {[%clk 00:23:08]} {[%emt 00:03:21]} Rxg4
{[%clk 00:21:29]} {[%emt 00:00:54]} 61. Ra6+ {[%clk 00:23:28]} {[%emt
00:00:11]} Kf5 {[%clk 00:20:11]} {[%emt 00:01:48]} 62. Rc6 {[%clk 00:23:39]}
{[%emt 00:00:19]} Bh2 {[%clk 00:18:17]} {[%emt 00:02:24]} 63. Nxc4 {[%clk
00:23:28]} {[%emt 00:00:43]} Rg1+ {[%clk 00:17:59]} {[%emt 00:00:46]} 64. Ke2
{[%clk 00:22:54]} {[%emt 00:01:04]} Rg2+ {[%clk 00:17:30]} {[%emt 00:00:59]} 65.
Kf3 {[%clk 00:22:54]} {[%emt 00:00:30]} Rc2 {[%clk 00:16:41]} {[%emt 00:01:18]}
66. Ne3+ {[%clk 00:23:02]} {[%emt 00:00:22]} 1-0

[Event "ONJK 2024 ABC"]
[Site "Velp, Netherlands"]
[Date "2024.08.03"]
[Round "3.12"]
[White "Verhoog, Willem"]
[Black "Zootjes, Aaron"]
[Result "0-1"]
[TimeControl "90 minutes + 30 seconds"]
[WhiteElo "1674"]
[BlackElo "1639"]

1. Nf3 {[%clk 01:30:58]} {[%emt 00:00:02]} c5 {[%clk 01:30:42]} {[%emt
00:00:19]} 2. c4 {[%clk 01:30:05]} {[%emt 00:01:23]} Nc6 {[%clk 01:30:20]}
{[%emt 00:00:52]} 3. e3 {[%clk 01:29:51]} {[%emt 00:00:44]} Nf6 {[%clk
01:29:48]} {[%emt 00:01:01]} 4. b3 {[%clk 01:27:58]} {[%emt 00:02:23]} e6
{[%clk 01:29:09]} {[%emt 00:01:09]} 5. Bb2 {[%clk 01:27:02]} {[%emt 00:01:26]}
Be7 {[%clk 01:28:00]} {[%emt 00:01:40]} 6. Be2 {[%clk 01:23:22]} {[%emt
00:04:10]} d5 {[%clk 01:26:59]} {[%emt 00:01:31]} 7. d3 {[%clk 01:21:24]}
{[%emt 00:02:28]} O-O {[%clk 01:25:50]} {[%emt 00:01:38]} 8. O-O {[%clk
01:21:23]} {[%emt 00:00:31]} d4 {[%clk 01:24:17]} {[%emt 00:02:04]} 9. exd4
{[%clk 01:19:00]} {[%emt 00:02:52]} cxd4 {[%clk 01:24:33]} {[%emt 00:00:15]} 10.
Nbd2 {[%clk 01:15:56]} {[%emt 00:03:33]} e5 {[%clk 01:21:45]} {[%emt 00:03:17]}
11. Ng5 {[%clk 01:13:10]} {[%emt 00:03:16]} Bf5 {[%clk 01:19:44]} {[%emt
00:02:31]} 12. Nde4 {[%clk 01:07:42]} {[%emt 00:05:59]} Nxe4 {[%clk 01:16:50]}
{[%emt 00:03:24]} 13. Nxe4 {[%clk 01:07:49]} {[%emt 00:00:22]} Bxe4 {[%clk
01:16:35]} {[%emt 00:00:45]} 14. dxe4 {[%clk 01:08:08]} {[%emt 00:00:12]} Bc5
{[%clk 01:14:42]} {[%emt 00:02:22]} 15. a3 {[%clk 01:00:30]} {[%emt 00:08:08]}
a5 {[%clk 01:13:44]} {[%emt 00:01:28]} 16. Qd3 {[%clk 00:57:56]} {[%emt
00:03:04]} Ne7 {[%clk 01:10:29]} {[%emt 00:03:45]} 17. f4 {[%clk 00:49:24]}
{[%emt 00:09:02]} Ng6 {[%clk 01:03:37]} {[%emt 00:07:23]} 18. f5 {[%clk
00:44:18]} {[%emt 00:05:35]} Nf4 {[%clk 01:03:41]} {[%emt 00:00:26]} 19. Rxf4
{[%clk 00:42:45]} {[%emt 00:02:02]} exf4 {[%clk 01:04:02]} {[%emt 00:00:09]} 20.
Bc1 {[%clk 00:42:18]} {[%emt 00:00:58]} Qd6 {[%clk 01:01:33]} {[%emt 00:02:59]}
21. Kh1 {[%clk 00:38:31]} {[%emt 00:04:17]} Qe5 {[%clk 00:59:54]} {[%emt
00:02:09]} 22. Ra2 {[%clk 00:36:55]} {[%emt 00:02:07]} Rfe8 {[%clk 00:56:58]}
{[%emt 00:03:25]} 23. Bf3 {[%clk 00:36:56]} {[%emt 00:00:28]} Qxf5 {[%clk
00:57:03]} {[%emt 00:00:26]} 24. Re2 {[%clk 00:35:20]} {[%emt 00:02:06]} Qe5
{[%clk 00:57:03]} {[%emt 00:00:30]} 25. Qd2 {[%clk 00:34:11]} {[%emt 00:01:39]}
Qd6 {[%clk 00:49:24]} {[%emt 00:08:09]} 26. Qxf4 {[%clk 00:31:54]} {[%emt
00:02:47]} Qxf4 {[%clk 00:49:23]} {[%emt 00:00:31]} 27. Bxf4 {[%clk 00:32:15]}
{[%emt 00:00:08]} Bxa3 {[%clk 00:49:36]} {[%emt 00:00:18]} 28. e5 {[%clk
00:31:49]} {[%emt 00:00:55]} a4 {[%clk 00:48:41]} {[%emt 00:01:25]} 29. Bxb7
{[%clk 00:31:05]} {[%emt 00:01:14]} Rab8 {[%clk 00:48:23]} {[%emt 00:00:49]} 30.
Bc6 {[%clk 00:31:13]} {[%emt 00:00:23]} Rxb3 {[%clk 00:48:19]} {[%emt
00:00:34]} 31. Bxe8 {[%clk 00:31:25]} {[%emt 00:00:18]} Rb1+ {[%clk 00:48:44]}
{[%emt 00:00:05]} 0-1

[Event "ONJK 2024 ABC"]
[Site "Velp, Netherlands"]
[Date "2024.08.03"]
[Round "3.13"]
[White "Zhao, Nick"]
[Black "De Wit, Evan"]
[Result "0-1"]
[TimeControl "90 minutes + 30 seconds"]
[WhiteElo "1836"]
[BlackElo "1782"]

1. d4 {[%clk 01:30:59]} d5 {[%clk 01:30:45]} {[%emt 00:00:15]} 2. c4 {[%clk
01:31:26]} {[%emt 00:00:03]} c6 {[%clk 01:31:07]} {[%emt 00:00:09]} 3. Nf3
{[%clk 01:31:52]} {[%emt 00:00:04]} Nf6 {[%clk 01:31:29]} {[%emt 00:00:08]} 4.
Nc3 {[%clk 01:32:16]} {[%emt 00:00:05]} e6 {[%clk 01:31:24]} {[%emt 00:00:36]}
5. Bg5 {[%clk 01:32:40]} {[%emt 00:00:06]} Be7 {[%clk 01:31:33]} {[%emt
00:00:21]} 6. e3 {[%clk 01:33:05]} {[%emt 00:00:05]} h6 {[%clk 01:31:55]}
{[%emt 00:00:08]} 7. Bf4 {[%clk 01:33:30]} {[%emt 00:00:05]} Nbd7 {[%clk
01:31:56]} {[%emt 00:00:29]} 8. h3 {[%clk 01:33:52]} {[%emt 00:00:08]} O-O
{[%clk 01:31:18]} {[%emt 00:01:09]} 9. c5 {[%clk 01:33:32]} {[%emt 00:00:50]}
b6 {[%clk 01:31:08]} {[%emt 00:00:39]} 10. b4 {[%clk 01:33:59]} {[%emt
00:00:03]} a5 {[%clk 01:29:06]} {[%emt 00:02:32]} 11. a3 {[%clk 01:34:23]}
{[%emt 00:00:07]} Ba6 {[%clk 01:28:52]} {[%emt 00:00:43]} 12. Bxa6 {[%clk
01:31:35]} {[%emt 00:03:18]} Rxa6 {[%clk 01:29:17]} {[%emt 00:00:06]} 13. O-O
{[%clk 01:31:59]} {[%emt 00:00:06]} Qa8 {[%clk 01:29:26]} {[%emt 00:00:21]} 14.
Bh2 {[%clk 01:17:09]} {[%emt 00:15:20]} Qa7 {[%clk 01:29:19]} {[%emt 00:00:37]}
15. g4 {[%clk 01:12:12]} {[%emt 00:05:27]} axb4 {[%clk 01:27:28]} {[%emt
00:02:22]} 16. axb4 {[%clk 01:12:33]} {[%emt 00:00:10]} Ra8 {[%clk 01:25:53]}
{[%emt 00:02:03]} 17. Rb1 {[%clk 01:11:36]} {[%emt 00:01:27]} Ra3 {[%clk
01:24:31]} {[%emt 00:01:52]} 18. Qc2 {[%clk 01:11:37]} {[%emt 00:00:29]} bxc5
{[%clk 01:22:57]} {[%emt 00:02:04]} 19. bxc5 {[%clk 01:11:55]} {[%emt
00:00:11]} Nxc5 {[%clk 01:16:17]} {[%emt 00:07:10]} 20. dxc5 {[%clk 01:06:29]}
{[%emt 00:05:56]} Bxc5 {[%clk 01:16:33]} {[%emt 00:00:13]} 21. Rb3 {[%clk
01:02:03]} {[%emt 00:04:57]} Rxb3 {[%clk 01:13:38]} {[%emt 00:03:24]} 22. Qxb3
{[%clk 01:02:27]} {[%emt 00:00:07]} Bxe3 {[%clk 01:10:51]} {[%emt 00:03:17]} 23.
Ne5 {[%clk 00:59:13]} {[%emt 00:03:44]} Bb6 {[%clk 01:06:36]} {[%emt 00:04:39]}
24. Nxc6 {[%clk 00:52:12]} {[%emt 00:07:36]} Qb7 {[%clk 01:04:15]} {[%emt
00:02:51]} 25. Nd4 {[%clk 00:51:48]} {[%emt 00:00:55]} Qa7 {[%clk 00:56:05]}
{[%emt 00:08:33]} 26. Ncb5 {[%clk 00:48:10]} {[%emt 00:04:14]} Qa5 {[%clk
00:56:07]} {[%emt 00:00:29]} 27. Nc6 {[%clk 00:43:48]} {[%emt 00:04:52]} Qa6
{[%clk 00:48:23]} {[%emt 00:08:13]} 28. Ncd4 {[%clk 00:38:54]} {[%emt
00:05:25]} Ne4 {[%clk 00:47:13]} {[%emt 00:01:39]} 29. Qb2 {[%clk 00:34:49]}
{[%emt 00:04:35]} Bxd4 {[%clk 00:41:13]} {[%emt 00:06:30]} 30. Nxd4 {[%clk
00:34:38]} {[%emt 00:00:40]} Qd3 {[%clk 00:41:25]} {[%emt 00:00:18]} 31. Kg2
{[%clk 00:24:09]} {[%emt 00:10:59]} Ra4 {[%clk 00:38:58]} {[%emt 00:02:58]} 32.
Ne2 {[%clk 00:19:34]} {[%emt 00:05:05]} Nd2 {[%clk 00:30:55]} {[%emt 00:08:33]}
33. Rd1 {[%clk 00:18:42]} {[%emt 00:01:22]} Qe4+ {[%clk 00:30:53]} {[%emt
00:00:32]} 34. Kg1 {[%clk 00:16:23]} {[%emt 00:02:49]} Nf3+ {[%clk 00:31:14]}
{[%emt 00:00:09]} 35. Kf1 {[%clk 00:15:00]} {[%emt 00:01:53]} Nxh2+ {[%clk
00:31:27]} {[%emt 00:00:16]} 36. Kg1 {[%clk 00:15:10]} {[%emt 00:00:21]} Nf3+
{[%clk 00:31:39]} {[%emt 00:00:18]} 37. Kf1 {[%clk 00:15:28]} {[%emt 00:00:10]}
Qb4 {[%clk 00:28:28]} {[%emt 00:03:41]} 38. Qc2 {[%clk 00:14:07]} {[%emt
00:01:52]} Qc4 {[%clk 00:27:51]} {[%emt 00:01:07]} 39. Qd3 {[%clk 00:12:06]}
{[%emt 00:02:32]} Qxd3 {[%clk 00:28:01]} {[%emt 00:00:20]} 40. Rxd3 {[%clk
00:12:29]} {[%emt 00:00:06]} Ra1+ {[%clk 00:28:16]} {[%emt 00:00:15]} 0-1

[Event "ONJK 2024 ABC"]
[Site "Velp, Netherlands"]
[Date "2024.08.03"]
[Round "3.14"]
[White "De Jong, Lode"]
[Black "Meert, Maarin"]
[Result "1-0"]
[TimeControl "90 minutes + 30 seconds"]
[WhiteElo "1755"]
[BlackElo "1811"]

1. d4 {[%clk 01:30:59]} d5 {[%clk 01:30:54]} {[%emt 00:00:07]} 2. c4 {[%clk
01:31:26]} {[%emt 00:00:03]} c6 {[%clk 01:31:20]} {[%emt 00:00:03]} 3. Nf3
{[%clk 01:31:53]} {[%emt 00:00:04]} Nf6 {[%clk 01:31:46]} {[%emt 00:00:04]} 4.
g3 {[%clk 01:32:19]} {[%emt 00:00:04]} dxc4 {[%clk 01:30:50]} {[%emt 00:01:25]}
5. Bg2 {[%clk 01:32:30]} {[%emt 00:00:19]} Bf5 {[%clk 01:29:32]} {[%emt
00:01:47]} 6. O-O {[%clk 01:29:26]} {[%emt 00:03:35]} h6 {[%clk 01:29:20]}
{[%emt 00:00:41]} 7. Nc3 {[%clk 01:28:26]} {[%emt 00:01:30]} e6 {[%clk
01:26:57]} {[%emt 00:02:53]} 8. Ne5 {[%clk 01:28:06]} {[%emt 00:00:50]} Nbd7
{[%clk 01:23:37]} {[%emt 00:03:50]} 9. Nxc4 {[%clk 01:27:53]} {[%emt 00:00:43]}
Nb6 {[%clk 01:18:19]} {[%emt 00:05:47]} 10. Ne5 {[%clk 01:19:04]} {[%emt
00:09:20]} Rc8 {[%clk 01:11:21]} {[%emt 00:07:28]} 11. e4 {[%clk 01:17:37]}
{[%emt 00:01:56]} Bh7 {[%clk 01:11:18]} {[%emt 00:00:34]} 12. a3 {[%clk
01:08:37]} {[%emt 00:09:31]} Be7 {[%clk 01:09:53]} {[%emt 00:01:54]} 13. Be3
{[%clk 01:06:55]} {[%emt 00:02:11]} O-O {[%clk 01:08:45]} {[%emt 00:01:38]} 14.
Qe2 {[%clk 01:07:00]} {[%emt 00:00:25]} Nfd7 {[%clk 00:50:27]} {[%emt
00:18:48]} 15. Rad1 {[%clk 01:00:41]} {[%emt 00:06:50]} Nxe5 {[%clk 00:48:27]}
{[%emt 00:02:30]} 16. dxe5 {[%clk 01:01:03]} {[%emt 00:00:08]} Qc7 {[%clk
00:48:38]} {[%emt 00:00:19]} 17. f4 {[%clk 00:59:02]} {[%emt 00:02:32]} Rcd8
{[%clk 00:45:09]} {[%emt 00:03:58]} 18. Rxd8 {[%clk 00:52:18]} {[%emt
00:07:14]} Rxd8 {[%clk 00:45:09]} {[%emt 00:00:29]} 19. Kh1 {[%clk 00:52:03]}
{[%emt 00:00:45]} a6 {[%clk 00:38:16]} {[%emt 00:07:24]} 20. f5 {[%clk
00:37:12]} {[%emt 00:15:21]} Nd7 {[%clk 00:26:40]} {[%emt 00:12:05]} 21. fxe6
{[%clk 00:23:13]} {[%emt 00:14:29]} Nxe5 {[%clk 00:23:11]} {[%emt 00:03:59]} 22.
exf7+ {[%clk 00:23:01]} {[%emt 00:00:42]} Nxf7 {[%clk 00:23:22]} {[%emt
00:00:19]} 23. Qc4 {[%clk 00:21:02]} {[%emt 00:02:30]} Bg6 {[%clk 00:12:04]}
{[%emt 00:11:47]} 24. Bh3 {[%clk 00:14:28]} {[%emt 00:07:03]} b5 {[%clk
00:10:49]} {[%emt 00:01:45]} 25. Qb3 {[%clk 00:13:46]} {[%emt 00:01:13]} Rd3
{[%clk 00:09:33]} {[%emt 00:01:47]} 26. Bf4 {[%clk 00:11:13]} {[%emt 00:03:02]}
Bd6 {[%clk 00:08:58]} {[%emt 00:01:05]} 27. Qe6 {[%clk 00:10:41]} {[%emt
00:01:02]} Bh5 {[%clk 00:07:56]} {[%emt 00:01:31]} 28. Qe8+ {[%clk 00:08:12]}
{[%emt 00:02:59]} Kh7 {[%clk 00:08:10]} {[%emt 00:00:16]} 29. Bxd6 {[%clk
00:08:10]} {[%emt 00:00:33]} Nxd6 {[%clk 00:07:42]} {[%emt 00:00:58]} 30. Qxh5
{[%clk 00:08:07]} {[%emt 00:00:32]} g6 {[%clk 00:06:03]} {[%emt 00:02:09]} 31.
Qe2 {[%clk 00:08:09]} {[%emt 00:00:28]} Rd4 {[%clk 00:05:45]} {[%emt 00:00:49]}
32. e5 {[%clk 00:07:59]} {[%emt 00:00:40]} Nc4 {[%clk 00:05:57]} {[%emt
00:00:17]} 33. e6 {[%clk 00:07:55]} {[%emt 00:00:34]} Rd2 {[%clk 00:05:59]}
{[%emt 00:00:29]} 34. Rf7+ {[%clk 00:07:38]} {[%emt 00:00:48]} Qxf7 {[%clk
00:06:15]} {[%emt 00:00:14]} 35. exf7 {[%clk 00:07:13]} {[%emt 00:00:55]} Rxe2
{[%clk 00:06:29]} {[%emt 00:00:16]} 36. f8=Q {[%clk 00:06:57]} {[%emt
00:00:46]} Re1+ {[%clk 00:06:46]} {[%emt 00:00:13]} 37. Kg2 {[%clk 00:07:21]}
{[%emt 00:00:06]} Ne3+ {[%clk 00:06:46]} {[%emt 00:00:29]} 38. Kf2 {[%clk
00:07:46]} {[%emt 00:00:06]} Rf1+ {[%clk 00:07:05]} {[%emt 00:00:12]} 39. Bxf1
{[%clk 00:08:09]} {[%emt 00:00:06]} 1-0

[Event "ONJK 2024 ABC"]
[Site "Velp, Netherlands"]
[Date "2024.08.03"]
[Round "3.15"]
[White "Roebers, Bregje"]
[Black "Vogels, Mathijs"]
[Result "1-0"]
[TimeControl "90 minutes + 30 seconds"]
[WhiteElo "1796"]
[BlackElo "1732"]

1. e4 {[%clk 01:30:56]} {[%emt 00:00:03]} e5 {[%clk 01:30:53]} {[%emt
00:00:07]} 2. Nc3 {[%clk 01:31:03]} {[%emt 00:00:23]} Nf6 {[%clk 01:31:11]}
{[%emt 00:00:13]} 3. f4 {[%clk 01:31:02]} {[%emt 00:00:31]} d6 {[%clk
01:31:21]} {[%emt 00:00:21]} 4. Bc4 {[%clk 01:30:30]} {[%emt 00:01:02]} Nc6
{[%clk 01:30:40]} {[%emt 00:01:10]} 5. Nf3 {[%clk 01:29:17]} {[%emt 00:01:43]}
Be7 {[%clk 01:29:41]} {[%emt 00:01:29]} 6. O-O {[%clk 01:27:39]} {[%emt
00:02:08]} O-O {[%clk 01:29:56]} {[%emt 00:00:15]} 7. d3 {[%clk 01:26:30]}
{[%emt 00:01:39]} h6 {[%clk 01:28:48]} {[%emt 00:01:38]} 8. a3 {[%clk
01:23:17]} {[%emt 00:03:43]} Na5 {[%clk 01:26:28]} {[%emt 00:02:50]} 9. Ba2
{[%clk 01:23:12]} {[%emt 00:00:35]} b6 {[%clk 01:24:40]} {[%emt 00:02:19]} 10.
Kh1 {[%clk 01:20:26]} {[%emt 00:03:15]} exf4 {[%clk 01:22:57]} {[%emt
00:02:13]} 11. Bxf4 {[%clk 01:18:30]} {[%emt 00:02:26]} Bb7 {[%clk 01:19:26]}
{[%emt 00:04:02]} 12. Nd4 {[%clk 01:15:25]} {[%emt 00:03:34]} Bc8 {[%clk
01:04:13]} {[%emt 00:15:43]} 13. b4 {[%clk 01:06:44]} {[%emt 00:09:12]} Nb7
{[%clk 00:55:07]} {[%emt 00:09:36]} 14. Nc6 {[%clk 01:05:43]} {[%emt 00:01:30]}
Qe8 {[%clk 00:53:37]} {[%emt 00:01:56]} 15. Nd5 {[%clk 01:03:43]} {[%emt
00:02:34]} Nxd5 {[%clk 00:51:02]} {[%emt 00:03:05]} 16. Bxd5 {[%clk 01:03:34]}
{[%emt 00:00:38]} Bh4 {[%clk 00:40:32]} {[%emt 00:11:00]} 17. Qh5 {[%clk
01:00:53]} {[%emt 00:03:12]} Bf6 {[%clk 00:37:16]} {[%emt 00:03:46]} 18. d4
{[%clk 00:57:06]} {[%emt 00:04:17]} Be6 {[%clk 00:36:15]} {[%emt 00:01:31]} 19.
Bxh6 {[%clk 00:53:33]} {[%emt 00:04:03]} g6 {[%clk 00:34:19]} {[%emt 00:02:26]}
20. Qf3 {[%clk 00:52:14]} {[%emt 00:01:49]} Bg7 {[%clk 00:34:10]} {[%emt
00:00:39]} 21. Bxg7 {[%clk 00:51:17]} {[%emt 00:01:26]} Kxg7 {[%clk 00:34:31]}
{[%emt 00:00:10]} 22. Qf6+ {[%clk 00:51:28]} {[%emt 00:00:19]} Kh7 {[%clk
00:34:11]} {[%emt 00:00:49]} 23. Rf4 {[%clk 00:51:17]} {[%emt 00:00:42]} 1-0